Cogmind - Beta 17 @@@ ROGUE MODE // 2026.08.14 @ 21:56:37 Player: Lazz Result: Escaped! Performance ------------- Evolutions (9) 4500 Regions Visited (18) 3600 Robots Destroyed (168) 840 Value Destroyed (8192) 8192 Prototype IDs (37) 740 Alien Tech Used (3) 600 Bonus (10269) 10269 TOTAL SCORE: 28741 Bonus ------- High Alert Combat Kills 107 Follower Combat Kills 266 Met Zhirov 300 Met R17 at Cetus 500 Met R17 at Research 2000 Scanned by Researcher 500 Acquired SGEMP 2000 Delivered SGEMP 2000 Win 3000 Friendly Fire -404 Cogmind --------- Core Integrity 460/1600 Matter 290/300 Energy 77/100 System Corruption 18% Temperature Cool (6) Movement Flying (54) Location To Epsilon Eridani Parts ------- > --- POWER (2) -------- (None) > --- PROPULSION (7) --- Flying FPD-Biometal Exoskeleton > --- UTILITY (12) ----- Advanced Signal Interpreter Core Analyzer Improved System Shield > --- WEAPON (4) ------- Molecular Scythe > --- INVENTORY (5) ---- Cryofiber Web Advanced Coolant Injector Advanced Recalibrator Peak State ------------ > --- POWER ------------ Quantum Reactor Multi-Quantum Reactor > --- PROPULSION ------- Advanced Myomer Leg Biometal Leg Biometal Leg Flying FPD-Biometal Exoskeleton > --- UTILITY ---------- Armored Scrap Engine Advanced Heat Sink 2N-1CE's Frost Array Experimental Energy Well Advanced Signal Interpreter Advanced Targeting Computer Core Analyzer Advanced Weapon Cycler Improved Powered Armor Improved Thermal Shield Advanced Point Defense System > --- WEAPON ----------- Hpw. Thermic Quantum Construct/G Ballistic Hardcell Construct/C Molecular Scythe Molecular Scythe > --- INVENTORY -------- Cryofiber Web Advanced Coolant Injector Advanced Phase Shifter Improved System Shield Advanced Recalibrator [Rating: 188] Favorites ----------- Power Constructs Engine Heavy Ion Engine Power Core Light Nuclear Core Reactor Constructs Propulsion Constructs Treads Advanced Medium Treads Leg Aluminum Leg Wheel Wheel Flight Unit Constructs Utility Large Storage Unit Device Armored Scrap Engine Storage Large Storage Unit Processor Core Analyzer Hackware System Mapper Protection Improved Weapon Shielding Weapon Constructs Energy Gun Constructs Energy Cannon Subdweller Beam Cannon Ballistic Gun Hypervelocity Railgun Ballistic Cannon Constructs Launcher Subdweller Shrapnel Launcher Impact Weapon Heavy Mace Slashing Weapon Molecular Scythe Build | -11 -10 -10 -8 -8 -8 -6 -6 -6 -5 -4 -4 -4 -4 -3 -3 -2 -2 -1 ------- Run | Yrd Mat Sub Mat Sto Rec Fac Ext Cet Fac Fac Upp Upp Zhi Pro Res Res Tes Acc Slots Evolved 18 | . . . 4 . . 4 . . 2 2 . . . . 2 2 . 2 Power 1 | . . . . . . 1 . . . . . . . . . . . . Propulsion 5 | . . . 2 . . 1 . . . 2 . . . . . . . . Utility 10 | . . . 2 . . 1 . . 2 . . . . . 2 2 . 1 Weapon 2 | . . . . . . 1 . . . . . . . . . . . 1 Parts Attached 153 | 7 1 7 8 32 2 7 14 8 7 5 . . 2 1 11 3 7 31 Power 18 | 1 . 1 1 3 . 1 1 . 2 1 . . 1 . 1 . . 5 Engine 9 | 1 . 1 1 2 . . 1 . 2 . . . . . . . . 1 Core 3 | . . . . 1 . 1 . . . 1 . . . . . . . . Reactor 6 | . . . . . . . . . . . . . 1 . 1 . . 4 Propulsion 45 | 2 . 1 4 15 . 1 9 1 . 1 . . . . 2 . 1 8 Treads 10 | . . . . . . . 2 1 . 1 . . . . 2 . . 4 Leg 22 | 2 . 1 4 5 . 1 4 . . . . . . . . . 1 4 Wheel 6 | . . . . 3 . . 3 . . . . . . . . . . . Hover . | . . . . . . . . . . . . . . . . . . . Flight 7 | . . . . 7 . . . . . . . . . . . . . . Utility 57 | 2 1 . 2 8 1 3 1 5 5 2 . . 1 1 6 3 5 11 Device 31 | 1 . . . 4 1 2 1 3 5 1 . . . 1 5 1 2 4 Storage 5 | 1 1 . . . . . . . . . . . . . 1 . 1 1 Processor 7 | . . . . . . 1 . 1 . . . . . . . 2 . 3 Hackware 3 | . . . . . . . . . . 1 . . . . . . . 2 Protection 11 | . . . 2 4 . . . 1 . . . . 1 . . . 2 1 Artifact . | . . . . . . . . . . . . . . . . . . . Weapon 33 | 2 . 5 1 6 1 2 3 2 . 1 . . . . 2 . 1 7 Energy Gun 6 | 2 . . . . . . . 2 . . . . . . 1 . . 1 Energy Cannon 10 | . . 3 1 3 . . 1 . . . . . . . 1 . 1 . Ballistic Gun 9 | . . 2 . 1 . 1 . . . . . . . . . . . 5 Ballistic Cannon 1 | . . . . 1 . . . . . . . . . . . . . . Launcher 3 | . . . . 1 1 . 1 . . . . . . . . . . . Special Weapon . | . . . . . . . . . . . . . . . . . . . Impact Weapon 1 | . . . . . . 1 . . . . . . . . . . . . Slashing Weapon 3 | . . . . . . . 1 . . 1 . . . . . . . 1 Piercing Weapon . | . . . . . . . . . . . . . . . . . . . Special Melee Weapon . | . . . . . . . . . . . . . . . . . . . Unidentified Prototypes 20 | . . . . 3 1 . . 3 . 1 . . 3 . 1 . 6 2 Parts Lost 87 | . . 3 5 10 . 2 10 4 3 1 . . . 1 2 . 6 40 Power 15 | . . 1 1 . . . 1 . 2 1 . . . . 1 . 1 7 Propulsion 30 | . . . 2 4 . 1 8 3 1 . . . . . . . 2 9 Utility 26 | . . . 1 4 . . . 1 . . . . . 1 1 . 2 16 Weapon 16 | . . 2 1 2 . 1 1 . . . . . . . . . 1 8 Highest Loss Streak 14 | . . 2 4 4 . 2 5 3 2 1 . . . 1 1 . 5 14 To Critical Strikes 4 | . . . . . . . . 1 . . . . . . . . 1 2 Average Backups 12 | 1 4 9 12 14 13 8 12 14 12 14 14 15 14 14 12 14 14 10 Power . | . . . . . 1 . . 1 . . . . . . . . . . Propulsion . | . 1 1 1 1 2 . . . . . . . . . . . . . Utility 7 | . 2 3 6 7 7 6 9 10 10 10 8 9 8 9 8 9 8 6 Weapon 3 | . 1 3 5 5 3 1 1 2 2 3 5 5 4 3 2 3 4 3 Tool/Special . | . . . . . . . . . . . . . . . . . . . Unused Backups 26 | . . 2 1 1 2 . 2 . . 3 1 . 1 1 . . 1 11 Power . | . . . . . . . . . . . . . . . . . . . Propulsion 1 | . . . 1 . . . . . . . . . . . . . . . Utility 17 | . . 1 . 1 . . 2 . . 3 1 . . 1 . . 1 7 Weapon 8 | . . 1 . . 2 . . . . . . . 1 . . . . 4 Tool/Special . | . . . . . . . . . . . . . . . . . . . Average Slot Usage (%) 76 | . 100 98 84 88 92 67 72 77 73 67 63 63 62 60 64 67 67 67 Engine 5 | . 14 12 8 6 9 5 10 11 2 1 . . . . . . . . Core 1 | . . . . 1 . 5 1 . . 2 5 5 3 . . . . . Reactor 2 | . . . . . . . . 1 5 5 5 5 6 10 8 8 7 6 Treads 3 | . . . . . . . 4 5 5 7 8 5 5 6 10 8 7 3 Leg 12 | . 28 28 33 17 36 16 11 5 5 . . . . . . . . 5 Flight 2 | . . . . 13 . 1 . . . 3 1 5 5 3 . . . 1 Device 16 | . 14 14 9 4 13 14 13 16 24 26 26 26 23 21 29 28 24 14 Storage 7 | . 14 14 9 9 9 6 6 6 5 5 5 5 5 5 5 8 8 6 Processor 2 | . . . . . . 4 6 3 . . . . . . . 3 7 8 Protection 3 | . . . 7 17 9 . . . 3 . . . 1 4 . . . 3 Energy Gun 4 | . 28 8 . . . . 1 10 11 9 4 5 5 3 2 . . 2 Energy Cannon 5 | . . 10 17 13 12 . . 3 2 . 2 5 5 5 5 8 7 . Ballistic Gun 2 | . . 9 . . . . 3 1 2 1 . . . . . . . 7 Peak Build Rating 188 | 7 7 15 30 34 43 56 68 96 105 123 125 118 122 122 150 162 174 188 Average Rating 78 | 5 7 11 25 26 34 47 59 73 100 113 104 117 119 120 135 159 162 156 On Entrance 77 | . 7 7 15 17 29 42 56 65 95 105 119 118 118 122 119 150 160 127 Avg Prop Armor Cover (%) 6 | . . . 4 6 . 12 7 8 4 8 6 6 6 6 5 . 4 4 Naked Turns . | . . . . . . . . . . . . . . . . . . . Heaviest Build 160 | 14 29 42 64 57 45 56 68 74 74 62 68 66 70 74 111 114 111 160 Greatest Support 178 | 20 20 30 60 47 47 65 78 80 80 178 178 75 75 75 150 150 150 136 Greatest Overweight (x) 6 | 1 1 1 1 4 . 1 6 6 . . 1 . . . 1 . 1 2 Average Overweight (x) . | . . 1 . 1 . . . . . . . . . . . . . . Largest Inventory Capacity 25 | 8 15 15 15 15 15 15 15 15 15 15 15 15 15 15 15 15 15 25 Average Capacity 15 | 7 14 15 15 15 15 15 15 15 15 15 15 15 15 15 15 15 15 16 Most Carried 17 | 4 5 15 15 15 15 11 15 15 15 15 15 15 15 15 15 15 15 17 Average Carried 12 | 1 4 11 13 14 13 8 12 14 12 14 14 14 14 14 12 14 14 10 Final Capacity 15 | 8 15 15 15 15 15 15 15 15 15 15 15 15 15 15 15 15 15 5 Final Carried 15 | 4 5 15 15 14 12 8 14 14 15 13 15 15 15 14 15 15 14 3 Scrap Engine Consumption 191 | . . . . . 15 12 41 17 23 15 9 . 1 1 2 9 4 42 Constructs Created 13 | . . . . . 1 1 3 2 . . 1 . . . . . 1 4 Constructs Modified 55 | . . . . . . 5 6 10 4 8 7 . . 2 . . 1 12 Class Distribution -------------------- 38% | Mutant 11% | Construct 10% | Tank 9% | Scavenger-Mutant 7% | Scavenger-Tank 6% | Hacker-Gunner 5% | Scavenger-Construct 5% | Subdweller-Mutant Dominant Class ---------------- Mutant | -10/Materials Mutant | -10/Subcaves Subdweller-Mutant | -8/Materials Mutant | -8/Storage Mutant | -8/Recycling Mutant | -6/Factory Scavenger-Mutant | -6/Extension Scavenger-Construct | -6/Cetus Scavenger-Tank | -5/Factory Scavenger-Tank | -4/Factory Construct | -4/Upper Caves Construct | -4/Upper Caves Construct | -4/Zhirov Construct | -3/Proximity Caves Tank | -3/Research Tank | -2/Research Tank | -2/Testing Hacker-Gunner | -1/Access Resources | -11 -10 -10 -8 -8 -8 -6 -6 -6 -5 -4 -4 -4 -4 -3 -3 -2 -2 -1 ----------- Run | Yrd Mat Sub Mat Sto Rec Fac Ext Cet Fac Fac Upp Upp Zhi Pro Res Res Tes Acc Matter Collected 3929 | 270 10 85 80 767 81 201 312 210 135 44 89 6 . 69 135 30 135 1270 Remotely . | . . . . . . . . . . . . . . . . . . . Salvage Created 8342 | 127 29 349 410 1004 191 134 1138 749 616 297 132 130 . 163 225 157 273 2218 Parts 444 | 8 6 27 13 70 12 2 57 28 27 17 6 3 . 7 4 5 17 135 Haulers Intercepted 6 | . . . . 4 . 1 . . . . . . . . . . . 1 Recyclers Shooed 5 | . . . . 1 . . 2 . . . . . . . . . . 2 Parts Field Recycled . | . . . . . . . . . . . . . . . . . . . Retrieved Matter . | . . . . . . . . . . . . . . . . . . . Parts Self-Destructed 20 | . . 16 . . . . . . . . 2 1 . 1 . . . . Prevented 9 | . . . . . . . . . . . 1 2 . 6 . . . . Parts Restored . | . . . . . . . . . . . . . . . . . . . Kills | -11 -10 -10 -8 -8 -8 -6 -6 -6 -5 -4 -4 -4 -4 -3 -3 -2 -2 -1 ------- Run | Yrd Mat Sub Mat Sto Rec Fac Ext Cet Fac Fac Upp Upp Zhi Pro Res Res Tes Acc Combat Hostiles Destroyed 134 | . . 12 6 27 5 1 15 12 9 3 2 5 . 3 3 1 4 26 Melee 6 | . . . 1 . . . 3 . . . . . . . . . . 2 Guns 53 | . . 1 . . . . 10 8 7 3 . 2 . . . . . 22 Cannons 42 | . . 11 4 10 4 . 2 1 1 . 1 1 . 2 1 1 2 1 AOE 19 | . . . . 17 1 . . . . . . . . . . . . 1 Classes Destroyed 17 | 2 1 2 2 2 . . 2 2 1 . . . . . 1 . . 2 Worker 4 | . . . . 2 . . 1 . . . . . . . . . 1 . Builder 3 | . 1 . . 1 . . 1 . . . . . . . . . . . Tunneler 7 | 3 . . . . . . 4 . . . . . . . . . . . Hauler 6 | . . . . 4 . 1 . . . . . . . . . . . 1 Recycler 4 | 1 . . 1 . . . 1 . . 1 . . . . . . . . Mechanic 1 | . . . . . . . . . . . . . . . . . . 1 Operator 1 | . . . . . . . . . . . . . . . . . . 1 Watcher 6 | . . . . . . . . 2 1 . . . . . . 2 . 1 Swarmer 29 | . . 6 . 8 . . 4 . . . . 5 . 2 . . . 4 Grunt 31 | . . . 5 11 . . 7 3 5 . . . . . . . . . Sentry 23 | . . . 1 8 3 1 2 . 1 1 1 . . 1 1 1 . 2 Hunter 12 | . . . . . . . . . . . . . . . 2 . . 10 Programmer 20 | . . . . . . . . 1 2 2 1 . . . . . 4 10 Heavy 1 | . . . . . . . . . 1 . . . . . . . . . Behemoth 2 | . . . . . . . 2 . . . . . . . . . . . Cetus Guard 8 | . . . . . . . . 8 . . . . . . . . . . Subdweller 8 | . . 6 . . 2 . . . . . . . . . . . . . Thug 1 | . . . . . . . 1 . . . . . . . . . . . Savage 1 | . . . . . . . 1 . . . . . . . . . . . Best Kill Streak 10 | 2 1 3 3 6 2 1 7 5 3 2 1 5 . 3 2 2 2 10 Combat Bots Only 10 | . . 3 2 5 2 1 3 4 2 2 1 5 . 3 2 1 2 10 Max Kills in Single Turn 3 | 1 1 1 2 3 1 1 3 1 1 2 1 1 . 1 1 1 1 2 Gunslinging 1 | . . . . . . . . . . 1 . . . . . . . 1 Exploded 3 | . . . . 3 1 . . . . . . . . . . . . 1 Melee 1 | . . . 1 . . . 1 . . . . . . . . . . 1 Uniques/NPCs Destroyed . | . . . . . . . . . . . . . . . . . . . Combat | -11 -10 -10 -8 -8 -8 -6 -6 -6 -5 -4 -4 -4 -4 -3 -3 -2 -2 -1 -------- Run | Yrd Mat Sub Mat Sto Rec Fac Ext Cet Fac Fac Upp Upp Zhi Pro Res Res Tes Acc Hostile Shots Fired 1917 | . . 47 84 127 22 45 258 118 51 8 4 21 . 32 64 4 226 806 Missed 648 | . . 16 28 42 9 13 102 37 15 5 3 11 . 8 24 3 62 270 Hits 1269 | . . 31 56 85 13 32 156 81 36 3 1 10 . 24 40 1 164 536 Melee 20 | . . . . . . . . . . . . . . . . . 20 . Projectile 1249 | . . 31 56 85 13 32 156 81 36 3 1 10 . 24 40 1 144 536 AOE 3 | . . . . . . . . . . 2 . . . . . . . 1 Critical Strikes 61 | . . 2 2 7 1 . 3 14 2 . . . . . . . 12 18 Actively Blocked 1 | . . . . 1 . . . . . . . . . . . . . . Part Disruptions 2 | . . . . . . . . . . . . . . . . . 1 1 Damage Taken 23862 | . . 518 908 1449 296 310 2204 2044 1174 128 23 155 . 477 402 12 3742 10020 Core 2797 | . . 111 117 220 45 12 389 306 77 6 . 14 . 30 41 . 289 1140 Absorbed by Shields 1622 | . . . . 77 . . . . . . . . . 78 247 12 542 666 Reduced by Siege Mode 169 | . . . . . . . . 110 15 . . . . . . . 19 25 Redirected to Shielding 410 | . . . . 217 37 . . . . . . . . 156 . . . . Ignored by Resistances 1043 | . . . . 18 . . . . . . . . . . . . 108 917 Regen/Repaired (Parts) 4061 | . . . . . 43 99 308 235 29 520 4 . 13 85 85 . 378 2262 Core Remaining (%) 64 | 100 . 55 . . 30 . . 16 92 . . . . 95 96 . 72 28 Volleys Fired 428 | 13 4 26 25 76 14 19 47 40 23 9 3 12 . 9 8 5 32 63 Largest 4 | 2 2 2 2 2 2 2 3 3 3 3 2 2 . 1 2 2 2 4 Hottest 546 | 90 90 160 160 143 143 104 201 201 546 521 172 172 . 85 179 198 205 195 Shots Fired 847 | 26 7 46 48 120 23 21 69 109 57 17 6 18 . 9 15 10 57 189 Gun 437 | 26 7 19 . 5 . 1 47 80 43 17 3 6 . . 7 . . 176 Cannon 382 | . . 27 48 95 18 19 20 29 14 . 3 12 . 9 8 10 57 13 Launcher 28 | . . . . 20 5 1 2 . . . . . . . . . . . Special . | . . . . . . . . . . . . . . . . . . . Kinetic 301 | . . 7 . 30 5 2 49 40 9 . . . . . . . . 159 Thermal 471 | 26 7 39 48 90 18 19 20 69 48 17 5 6 . . 7 5 33 14 Explosive . | . . . . . . . . . . . . . . . . . . . Electromagnetic 75 | . . . . . . . . . . . 1 12 . 9 8 5 24 16 Robot Hit Streak 28 | 4 5 16 8 9 6 4 13 17 28 6 12 18 . 6 4 5 5 16 Robot Miss Streak 10 | 4 2 1 4 4 2 2 10 3 1 1 . 1 . 1 3 2 3 3 Penetration Max 1 | . . . . . . . 1 1 . . . . . . . . . 1 Secondary Targets 7 | . . . . . . . . . 1 1 . . . . . . . 5 Max Gunslinging Chain 1 | . . . . . . . . . 1 1 . . . . . . . 1 Shots Hit Robots 532 | 16 5 34 27 58 13 11 48 80 37 9 6 8 . 7 9 7 16 141 Core Hits 255 | 5 1 15 11 46 8 1 37 28 11 5 1 3 . 3 1 2 5 72 Critical Kills 32 | . . . . . . . 2 8 2 . . . . . . . 1 19 Critical Parts Destroyed 28 | . . . . . . . 1 5 . . . 1 . . 1 . . 20 Critical Strikes 80 | 2 . 3 . . . . 8 18 2 . . 1 . . 1 . 1 44 Burn 9 | 2 . 3 . . . . 1 3 . . . . . . . . . . Meltdown 5 | . . . . . . . . 2 2 . . . . . . . 1 . Destroy 59 | . . . . . . . 3 13 . . . 1 . . 1 . . 41 Sever 7 | . . . . . . . 4 . . . . . . . . . . 3 Melee Attacks 56 | . . . . . . 3 10 . . . . . . . . . . 43 Impact 4 | . . . . . . 3 1 . . . . . . . . . . . Slashing 52 | . . . . . . . 9 . . . . . . . . . . 43 Piercing . | . . . . . . . . . . . . . . . . . . . Sneak Attacks 4 | . . . . . . . . . . . . . . . . . . 4 Combat Hostiles . | . . . . . . . . . . . . . . . . . . . Follow-up Attacks 2 | . . . . . . . 1 . . . . . . . . . . 1 Damage Inflicted 18181 | 200 59 738 814 2988 567 339 1974 2289 1883 392 331 455 . 388 453 514 969 2828 Guns 6778 | 200 59 221 . 48 . . 1038 1512 1694 392 115 99 . . 120 . . 1280 Cannons 7436 | . . 517 790 1052 258 322 403 777 189 . 216 356 . 388 333 514 938 383 Explosions 2479 | . . . . 1888 309 17 149 . . . . . . . . . . 116 Melee 1405 | . . . . . . . 384 . . . . . . . . . . 1021 Ramming 83 | . . . 24 . . . . . . . . . . . . . 31 28 Kinetic 5436 | . . 93 . 1854 309 17 1187 693 146 . . . . . . . . 1137 Thermal 9280 | 200 59 645 790 946 258 322 403 1596 1737 392 243 99 . . 120 134 850 486 Explosive 188 | . . . . 188 . . . . . . . . . . . . . . Electromagnetic 1789 | . . . . . . . . . . . 88 356 . 388 333 380 88 156 Impact 42 | . . . . . . . 42 . . . . . . . . . . . Slashing 1363 | . . . . . . . 342 . . . . . . . . . . 1021 Piercing . | . . . . . . . . . . . . . . . . . . . Highest Corruption 23 | . . . . . . . . 1 1 1 1 1 1 1 . . 23 18 Average Corruption 6 | . . . . . . . . 1 1 1 1 1 1 1 . . 9 14 Corruption Purged . | . . . . . . . . . . . . . . . . . . . Corruption Blocked . | . . . . . . . . . . . . . . . . . . . Effects 104 | . . . . . . . . . 3 3 1 4 2 3 . . 20 68 Message Errors 23 | . . . . . . . . . . 2 . 1 1 . . . 3 16 Matter Fused 17 | . . . . . . . . . 1 . . . 1 1 . . 5 9 Heat Flow Errors 7 | . . . . . . . . . . . . 1 . . . . 3 3 Energy Discharges 16 | . . . . . . . . . 1 . 1 1 . . . . 1 12 Parts Rejected 5 | . . . . . . . . . . . . . . . . . 2 3 Parts Fused 1 | . . . . . . . . . . . . . . . . . . 1 Data Loss (minor) 12 | . . . . . . . . . 1 1 . 1 . . . . 2 7 Data Loss (major) 3 | . . . . . . . . . . . . . . 1 . . 1 1 Misfires 2 | . . . . . . . . . . . . . . . . . . 2 Alerts 4 | . . . . . . . . . . . . . . 1 . . . 3 Misdirections 9 | . . . . . . . . . . . . . . . . . 3 6 Weapon Failures 5 | . . . . . . . . . . . . . . . . . . 5 Overload Shots 42 | . . . . . . . . . 32 10 . . . . . . . . Effects 2 | . . . . . . . . . 2 . . . . . . . . . Energy Bleed 1 | . . . . . . . . . 1 . . . . . . . . . Heat Surge 1 | . . . . . . . . . 1 . . . . . . . . . Overflow Damage 522 | . . 8 26 108 . . 2 15 . . 52 20 . 25 . 144 13 109 Projectiles 303 | . . 8 26 . . . . 15 . . 52 20 . 25 . 144 13 . Explosions 108 | . . . . 108 . . . . . . . . . . . . . . Melee 111 | . . . . . . . 2 . . . . . . . . . . 109 Knockbacks 2 | . . . . 1 . . 1 . . . . . . . . . . . Impact 1 | . . . . . . . 1 . . . . . . . . . . . Kinetic 1 | . . . . 1 . . . . . . . . . . . . . . Secondary . | . . . . . . . . . . . . . . . . . . . Self-Inflicted Damage 449 | . . . . 297 87 65 . . . . . . . . . . . . Shots 12 | . . . . 7 4 1 . . . . . . . . . . . . Rammed 1 | . . . . . . . . . . . . . . . . . 1 . Targets Rammed 8 | . . . 4 . . . . . . . . . . . . . 2 2 Kicked 6 | . . . 4 . . . . . . . . . . . . . . 2 Crushed 1 | . . . . . . . . . . . . . . . . . 1 . Highest Temperature 503 | 150 60 270 297 306 216 160 391 240 503 89 . . . . . . 40 94 Average Temperature 94 | 63 25 88 104 100 79 70 96 97 138 57 . . . . . . 40 71 Received Heat Transfer 2686 | . . 390 477 602 78 72 516 36 99 12 . . . 18 15 . 74 297 Effects 12 | . . . 2 1 . . 1 . 8 . . . . . . . . . Shutdowns 2 | . . . . . . . 1 . 1 . . . . . . . . . Energy Bleed 3 | . . . 2 1 . . . . . . . . . . . . . . Interference 3 | . . . . . . . . . 3 . . . . . . . . . Damage (major) 4 | . . . . . . . . . 4 . . . . . . . . . Siege Activations 8 | . . . . . . . . 1 2 . . . . . . 1 3 1 Total Turns 182 | . . . . . . . . 58 80 . . . . . . 7 16 21 Longest Duration 58 | . . . . . . . . 58 45 . . . . . . 7 8 21 Martial Activations . | . . . . . . . . . . . . . . . . . . . Shielding Activations . | . . . . . . . . . . . . . . . . . . . Robots Disrupted . | . . . . . . . . . . . . . . . . . . . Combat Hostiles . | . . . . . . . . . . . . . . . . . . . Robots Corrupted 6 | . . . . . . . . . . . 1 2 . 1 2 . . . Combat Hostiles 6 | . . . . . . . . . . . 1 2 . 1 2 . . . Parts Fried 9 | . . . . . . . . . . . . 2 . 2 3 2 . . Impact Corruptions 1 | . . . . . . . 1 . . . . . . . . . . . Robots Melted 10 | . . . 1 . . 2 . 3 2 . . . . . . . 2 . Combat Hostiles 8 | . . . 1 . . 1 . 3 1 . . . . . . . 2 . Parts Melted 31 | 1 . 2 1 1 2 1 3 3 4 3 . . . . . . 10 . Heat Transferred 12245 | 681 149 1260 1049 1480 370 650 731 3200 1574 372 74 . . . 148 111 296 100 Parts Sabotaged . | . . . . . . . . . . . . . . . . . . . Parts Stolen . | . . . . . . . . . . . . . . . . . . . Parts Stripped . | . . . . . . . . . . . . . . . . . . . Power Chain Reactions 1 | . . . . . . . . . . . . . . . . . . 1 Alert | -11 -10 -10 -8 -8 -8 -6 -6 -6 -5 -4 -4 -4 -4 -3 -3 -2 -2 -1 ------- Run | Yrd Mat Sub Mat Sto Rec Fac Ext Cet Fac Fac Upp Upp Zhi Pro Res Res Tes Acc Maximum Alert Level 2 | . . . . 2 1 . . . . . . . . . . . . 1 Low Security (%) 78 | 100 100 . 100 11 91 100 100 100 100 100 . . . . 100 100 100 46 Level 1 11 | . . . . 17 8 . . . . . . . . . . . . 53 Level 2 9 | . . . . 70 . . . . . . . . . . . . . . Level 3 . | . . . . . . . . . . . . . . . . . . . Level 4 . | . . . . . . . . . . . . . . . . . . . Level 5 . | . . . . . . . . . . . . . . . . . . . High Security . | . . . . . . . . . . . . . . . . . . . Max Security . | . . . . . . . . . . . . . . . . . . . Peak Influence 577 | 10 5 . 61 577 216 50 190 125 131 61 . . . . 52 37 196 326 Initial 216 | . . . 40 18 216 50 . 75 59 61 . . . . 30 . . 63 Average 114 | 1 . . 20 445 40 5 58 28 61 15 . . . . 11 8 58 188 Influence Increases 5460 | 20 5 140 316 1123 98 159 771 275 332 128 50 185 . 75 97 50 423 1213 Destroy 0b10 Robot/C 2680 | . . 120 120 540 60 20 460 240 180 60 40 100 . 60 60 20 80 520 Destroy 0b10 Robot/NC 175 | 20 5 . 5 40 . 5 40 10 5 5 . . . . . 10 5 25 Destroy Leader 542 | . . 20 20 148 . 12 40 20 52 20 10 10 . . 20 14 20 136 Allied During Kill 173 | . . . . . . . 155 . . . . . . . . . . 18 Successful Hack 165 | . . . 5 12 . 36 26 . . 16 . . . . . . . 70 Disable Machine 360 | . . . 30 180 . 15 15 . . 15 . . . . . . 75 30 Destroy Structure 460 | . . . 16 203 38 21 20 5 20 12 . . . . 2 6 48 69 Advance Influence 50 | . . . . . . 50 . . . . . . . . . . . . Partial Spotted 45 | . . . . . . . . . . . . . . . . . 45 . Lose Combat Pursuer 810 | . . . 120 . . . 15 . 75 . . 75 . 15 15 . 150 345 Influence Decreases 5137 | 20 5 62 350 612 653 159 636 303 312 255 50 130 55 30 142 50 317 996 Entered New Map 690 | . . . 38 26 339 . . 60 48 66 . . 55 . 15 . . 43 Time Decay 3251 | 20 5 52 262 486 164 129 337 207 234 187 50 130 . 20 115 43 257 553 Lost Part 794 | . . 10 50 100 . 20 74 36 20 2 . . . 10 12 . 60 400 Lost Ally 252 | . . . . . . 10 225 . 10 . . . . . . 7 . . Purge Threat 150 | . . . . . 150 . . . . . . . . . . . . . Squads Dispatched 30 | . 1 . 1 4 . 1 2 . 3 . . . . 1 3 . 5 9 Investigation 6 | . . . . 2 . . 1 . . . . . . . . . . 3 Extermination 8 | . . . . . . 1 . . . . . . . . . . 2 5 Reinforcement 15 | . 1 . 1 2 . . 1 . 3 . . . . . 3 . 3 1 Assault 1 | . . . . . . . . . . . . . . 1 . . . . Garrison . | . . . . . . . . . . . . . . . . . . . Intercept . | . . . . . . . . . . . . . . . . . . . Searches Triggered . | . . . . . . . . . . . . . . . . . . . Construction Impeded 1 | . . . . . . . 1 . . . . . . . . . . . Haulers Reinforced . | . . . . . . . . . . . . . . . . . . . Active Scanning Responses . | . . . . . . . . . . . . . . . . . . . Cargo Convoy Interrupts . | . . . . . . . . . . . . . . . . . . . Stealth | -11 -10 -10 -8 -8 -8 -6 -6 -6 -5 -4 -4 -4 -4 -3 -3 -2 -2 -1 --------- Run | Yrd Mat Sub Mat Sto Rec Fac Ext Cet Fac Fac Upp Upp Zhi Pro Res Res Tes Acc Distress Signals 18 | . . . . 4 2 1 1 2 1 1 . . . . 3 . 2 1 Communications Jammed . | . . . . . . . . . . . . . . . . . . . Distress Signals . | . . . . . . . . . . . . . . . . . . . Times Spotted 269 | . 3 12 27 38 6 1 29 13 14 4 2 11 . 14 6 3 20 66 Peak Tracking Total 17 | . 2 3 11 5 2 1 6 5 7 2 1 7 . 11 2 1 7 17 Tactical Retreats 24 | . . . 5 . . . 1 . 3 . . 2 . 1 1 . 4 7 Traps | -11 -10 -10 -8 -8 -8 -6 -6 -6 -5 -4 -4 -4 -4 -3 -3 -2 -2 -1 ------- Run | Yrd Mat Sub Mat Sto Rec Fac Ext Cet Fac Fac Upp Upp Zhi Pro Res Res Tes Acc Traps Triggered 3 | . . . . 1 . . . . . 1 . . . . . . 1 . Indirectly . | . . . . . . . . . . . . . . . . . . . Trap Hack Attempts . | . . . . . . . . . . . . . . . . . . . Triggered . | . . . . . . . . . . . . . . . . . . . Disarmed 6 | . . . . 6 . . . . . . . . . . . . . . Reprogrammed . | . . . . . . . . . . . . . . . . . . . Reused . | . . . . . . . . . . . . . . . . . . . Traps Extracted . | . . . . . . . . . . . . . . . . . . . Installed . | . . . . . . . . . . . . . . . . . . . Triggered . | . . . . . . . . . . . . . . . . . . . Machines | -11 -10 -10 -8 -8 -8 -6 -6 -6 -5 -4 -4 -4 -4 -3 -3 -2 -2 -1 ---------- Run | Yrd Mat Sub Mat Sto Rec Fac Ext Cet Fac Fac Upp Upp Zhi Pro Res Res Tes Acc Machines Disabled 25 | . . . 2 12 . 1 1 . . 1 . 1 . . . . 5 2 Max in Single Turn 2 | . . . 1 2 . 1 1 . . 1 . 1 . . . . 1 1 Machines Repaired . | . . . . . . . . . . . . . . . . . . . Machines Dismantled . | . . . . . . . . . . . . . . . . . . . Machines Sabotaged . | . . . . . . . . . . . . . . . . . . . Overloaded Fab Kills . | . . . . . . . . . . . . . . . . . . . Hacking | -11 -10 -10 -8 -8 -8 -6 -6 -6 -5 -4 -4 -4 -4 -3 -3 -2 -2 -1 --------- Run | Yrd Mat Sub Mat Sto Rec Fac Ext Cet Fac Fac Upp Upp Zhi Pro Res Res Tes Acc Machines Accessed 37 | . . . 3 6 3 3 6 . 1 1 1 1 4 . . . 2 6 Terminals 26 | . . . 3 6 2 2 6 . . 1 . . . . . . 1 5 Fabricators 1 | . . . . . . . . . 1 . . . . . . . . . Repair Stations 1 | . . . . . . 1 . . . . . . . . . . . . Recycling Units . | . . . . . . . . . . . . . . . . . . . Scanalyzers 2 | . . . . . . . . . . . . . . . . . 1 1 Garrison Access . | . . . . . . . . . . . . . . . . . . . Total Hacks 96 | . . . 5 15 11 10 16 . 1 1 1 1 17 . . . 2 16 Successful 48 | . . . 2 4 5 6 7 . . 1 1 1 17 . . . . 4 Failed 48 | . . . 3 11 6 4 9 . 1 . . . . . . . 2 12 Catastrophic 9 | . . . 1 1 . . 2 . . . . . . . . . 1 4 Database Lockouts . | . . . . . . . . . . . . . . . . . . . Manual 11 | . . . 1 6 . 2 . . 1 . . . . . . . 1 . Terminals 67 | . . . 5 15 8 7 16 . . 1 . . . . . . 1 14 Fabricators 1 | . . . . . . . . . 1 . . . . . . . . . Repair Stations 3 | . . . . . . 3 . . . . . . . . . . . . Recycling Units . | . . . . . . . . . . . . . . . . . . . Scanalyzers 3 | . . . . . . . . . . . . . . . . . 1 2 Garrison Access . | . . . . . . . . . . . . . . . . . . . Terminal Hacks 44 | . . . 2 4 5 4 7 . . 1 1 1 17 . . . . 2 Record 7 | . . . . . 1 . . . . . . 1 5 . . . . . Part Schematic 4 | . . . . . . . . . . . . . 4 . . . . . Robot Analysis 4 | . . . . . . . . . . . . . 4 . . . . . Prototype ID Bank 6 | . . . . 1 . . 1 . . . . . 4 . . . . . Open Door 9 | . . . . 2 . . 4 . . . 1 . . . . . . 2 Branch Access Points 2 | . . . 1 . . . . . . 1 . . . . . . . . Emergency Access Points 1 | . . . . . . 1 . . . . . . . . . . . . Alert Level 1 | . . . . . . 1 . . . . . . . . . . . . Unreport Threat 1 | . . . . . 1 . . . . . . . . . . . . . Locate Traps 1 | . . . . . . 1 . . . . . . . . . . . . Disarm Traps 1 | . . . . 1 . . . . . . . . . . . . . . Registered Components 2 | . . . . . . 1 1 . . . . . . . . . . . Zone Layout 3 | . . . 1 . 1 . 1 . . . . . . . . . . . Release Object 2 | . . . . . 2 . . . . . . . . . . . . . Fabricator Hacks . | . . . . . . . . . . . . . . . . . . . Repair Station Hacks 2 | . . . . . . 2 . . . . . . . . . . . . Scan Component 1 | . . . . . . 1 . . . . . . . . . . . . Repair 1 | . . . . . . 1 . . . . . . . . . . . . Recycling Unit Hacks . | . . . . . . . . . . . . . . . . . . . Scanalyzer 2 | . . . . . . . . . . . . . . . . . . 2 Retrieve Study 2 | . . . . . . . . . . . . . . . . . . 2 Garrison Access Hacks . | . . . . . . . . . . . . . . . . . . . Unauthorized Hacks . | . . . . . . . . . . . . . . . . . . . Terminals . | . . . . . . . . . . . . . . . . . . . Fabricators . | . . . . . . . . . . . . . . . . . . . Repair Stations . | . . . . . . . . . . . . . . . . . . . Recycling Units . | . . . . . . . . . . . . . . . . . . . Scanalyzers . | . . . . . . . . . . . . . . . . . . . Garrison Access . | . . . . . . . . . . . . . . . . . . . Data Cores Recovered . | . . . . . . . . . . . . . . . . . . . Used . | . . . . . . . . . . . . . . . . . . . Hacking Detections 25 | . . . 2 5 2 3 3 . 1 1 . . . . . . 2 6 Full Trace Events 7 | . . . . 2 1 . 1 . . . . . . . . . . 3 Feedback Events . | . . . . . . . . . . . . . . . . . . . Feedback Blocked . | . . . . . . . . . . . . . . . . . . . Robot Schematics Acquired . | . . . . . . . . . . . . . . . . . . . Robots Built . | . . . . . . . . . . . . . . . . . . . Authchips . | . . . . . . . . . . . . . . . . . . . Time . | . . . . . . . . . . . . . . . . . . . Total Robot Build Rating . | . . . . . . . . . . . . . . . . . . . Part Schematics Acquired 4 | . . . . . . . . . . . . . 4 . . . . . Parts Built . | . . . . . . . . . . . . . . . . . . . Authchips . | . . . . . . . . . . . . . . . . . . . Time . | . . . . . . . . . . . . . . . . . . . Total Part Build Rating . | . . . . . . . . . . . . . . . . . . . Part Studies Acquired 2 | . . . . . . . . . . . . . . . . . . 2 Parts Repaired 1 | . . . . . . 1 . . . . . . . . . . . . Time 25 | . . . . . . 25 . . . . . . . . . . . . Parts Recycled . | . . . . . . . . . . . . . . . . . . . Recycled Matter . | . . . . . . . . . . . . . . . . . . . Retrieved Matter . | . . . . . . . . . . . . . . . . . . . Retrieved Components . | . . . . . . . . . . . . . . . . . . . Parts Scanalyzed . | . . . . . . . . . . . . . . . . . . . Part Schematics Acquired . | . . . . . . . . . . . . . . . . . . . Parts Damaged . | . . . . . . . . . . . . . . . . . . . Bothacking | -11 -10 -10 -8 -8 -8 -6 -6 -6 -5 -4 -4 -4 -4 -3 -3 -2 -2 -1 ------------ Run | Yrd Mat Sub Mat Sto Rec Fac Ext Cet Fac Fac Upp Upp Zhi Pro Res Res Tes Acc Used RIF Installer . | . . . . . . . . . . . . . . . . . . . Robots Hacked . | . . . . . . . . . . . . . . . . . . . Non-combat . | . . . . . . . . . . . . . . . . . . . Combat . | . . . . . . . . . . . . . . . . . . . Robot Hacks Applied . | . . . . . . . . . . . . . . . . . . . Relay Couplers Released . | . . . . . . . . . . . . . . . . . . . Fabnet Peak Effective % . | . . . . . . . . . . . . . . . . . . . Robots Rewired 7 | . . . . . . . 7 . . . . . . . . . . . Allies Hacked . | . . . . . . . . . . . . . . . . . . . Hacks Repelled . | . . . . . . . . . . . . . . . . . . . Allies | -11 -10 -10 -8 -8 -8 -6 -6 -6 -5 -4 -4 -4 -4 -3 -3 -2 -2 -1 -------- Run | Yrd Mat Sub Mat Sto Rec Fac Ext Cet Fac Fac Upp Upp Zhi Pro Res Res Tes Acc Total Allies 17 | . . . . . . . 14 . . . . . . . . . . 3 Largest Group 8 | . . . . . . . 8 . . . . . . . . . . 3 Highest-Rated Group 379 | . . . . . . . 264 . . . . . . . . . . 379 Highest-Rated Ally 135 | . . . . . . . 39 . . . . . . . . . . 135 Total Orders 9 | . . . . . . 1 . . 2 . . . . . 1 5 . . EXPLORE 7 | . . . . . . 1 . . 2 . . . . . 1 3 . . RETURN 2 | . . . . . . . . . . . . . . . . 2 . . Ally Attacks 83 | . . . . . . . 79 . . . . . . . . . . 4 Total Damage 1430 | . . . . . . . 1230 . . . . . . . . . . 200 Kills 10 | . . . . . . . 9 . . . . . . . . . . 1 Allies Corrupted . | . . . . . . . . . . . . . . . . . . . Allies Melted . | . . . . . . . . . . . . . . . . . . . Intel | -11 -10 -10 -8 -8 -8 -6 -6 -6 -5 -4 -4 -4 -4 -3 -3 -2 -2 -1 ------- Run | Yrd Mat Sub Mat Sto Rec Fac Ext Cet Fac Fac Upp Upp Zhi Pro Res Res Tes Acc Active Infowar (turns) 5561 | 97 199 1273 764 154 . 265 1008 32 119 367 180 351 115 305 276 . . 56 Optics 32 | . . . . . . . . 32 . . . . . . . . . . Sensors 3044 | . . . . 2 . 265 1008 . 119 367 180 351 115 305 276 . . 56 Terrain 43 | . . . . 40 . . . . . . . . . . 3 . . . Seismic 2485 | 97 199 1273 764 152 . . . . . . . . . . . . . . Robot Analysis Total 4 | . . . . . . . . . . . . . 4 . . . . . Derelict Logs Recovered 1 | . . . . . . . . . . . 1 . . . . . . . Drone Launches 8 | . . . . . . 2 . . 2 . . . . . 1 3 . . Drone Recoveries 4 | . . . . . . . . . 1 . . . . . 1 2 . . Exploration | -11 -10 -10 -8 -8 -8 -6 -6 -6 -5 -4 -4 -4 -4 -3 -3 -2 -2 -1 ------------- Run | Yrd Mat Sub Mat Sto Rec Fac Ext Cet Fac Fac Upp Upp Zhi Pro Res Res Tes Acc Turns Passed 12669 | 174 199 1273 814 1422 436 836 1295 991 537 557 408 351 115 305 487 187 680 1602 Spaces Moved 7035 | 97 51 588 338 752 309 295 686 218 155 219 389 534 187 510 226 104 493 884 Core 13 | 13 . . . . . . . . . . . . . . . . . . Treads 2246 | . . . . . . . 118 185 155 219 201 . . 143 226 104 493 402 Legs 2769 | 84 51 588 338 392 309 239 524 5 . . . . . . . . . 239 Wheels 258 | . . . . 161 . 25 44 28 . . . . . . . . . . Hover 35 | . . . . . . . . . . . 35 . . . . . . . Flight 1714 | . . . . 199 . 31 . . . . 153 534 187 367 . . . 243 Fastest Speed 34 | 50 120 190 112 101 122 84 84 160 160 121 54 54 54 34 34 97 97 54 Average Speed 122 | 114 174 194 180 138 122 122 122 163 160 149 97 54 54 48 140 97 99 133 Slowest Speed 360 | 120 190 200 200 360 122 184 240 244 160 160 160 54 54 54 177 97 131 250 Overloaded Moves . | . . . . . . . . . . . . . . . . . . . Propulsion Burnouts . | . . . . . . . . . . . . . . . . . . . Robots Hopped 4 | . . . . . . . . . . . . . . . . . . 4 Potential Cave-ins 5 | . . . . . . . . . . . . 3 . . . . 2 . Cave-ins Triggered . | . . . . . . . . . . . . . . . . . . . Teleports 1 | . . . . . . . . . . . . . . . . . 1 . Exploration Rate (%) 39 | 3 13 30 34 98 52 13 68 73 13 7 59 70 62 70 6 7 54 18 Regions Visited 18 Branch Regions 10 Pre-discovered Areas 4 | . . . . . . . . . . . 1 . 3 . . . . . Known Exits Taken 7 | . . . 1 . . 1 1 1 . 1 . . . . . 1 1 . Unknown Exits Taken 11 | 1 1 1 . 1 1 . . . 1 . 1 1 1 1 1 . . . Scrap Searched 13 | . . 5 . . . . . . . . 4 1 . 3 . . . . Spaces Dug 64 | . . . 9 11 2 2 . . 5 3 . 5 . . . . 17 10 Terrain Destroyed 406 | . . 2 15 225 47 24 16 6 11 5 . 7 . 1 1 2 21 23 Melee 12 | . . . . . . 2 . . . . . . . . . . . 10 Projectile 108 | . . 2 15 21 3 . 8 6 11 5 . 7 . 1 1 2 21 5 AOE 283 | . . . . 204 44 22 8 . . . . . . . . . . 5 Terrain Rammed . | . . . . . . . . . . . . . . . . . . . Walls Destroyed . | . . . . . . . . . . . . . . . . . . . Machines Disabled . | . . . . . . . . . . . . . . . . . . . Actions | -11 -10 -10 -8 -8 -8 -6 -6 -6 -5 -4 -4 -4 -4 -3 -3 -2 -2 -1 --------- Run | Yrd Mat Sub Mat Sto Rec Fac Ext Cet Fac Fac Upp Upp Zhi Pro Res Res Tes Acc Total 10254 | 130 154 672 497 1015 348 744 1061 766 397 436 413 578 200 560 379 182 625 1097 Wait 2224 | 10 97 33 97 121 13 408 206 485 207 184 11 31 2 36 122 61 53 47 Move 7010 | 96 50 587 337 751 308 294 685 217 154 218 388 533 186 509 225 103 492 877 Hop 2 | . . . . . . . . . . . . . . . . . . 2 Pick Up 99 | 4 1 14 11 11 3 2 8 4 2 4 4 1 2 2 4 5 4 13 Fast Attach 93 | 7 . 1 1 18 1 2 10 4 1 6 . . 4 . 6 . 10 22 Attach 60 | . . 3 5 9 1 5 5 2 3 1 . . . 1 5 2 3 15 Detach 15 | . . . . 1 . 1 4 2 . 1 1 . . . 1 . 1 3 Swap 53 | . 1 3 4 9 . 4 4 5 6 2 2 . 1 . 3 3 1 5 Drop 112 | . 1 5 10 19 8 6 4 7 1 11 4 1 5 3 5 3 11 8 Fire 428 | 13 4 26 25 76 14 19 47 40 23 9 3 12 . 9 8 5 32 63 Melee 52 | . . . . . . 3 9 . . . . . . . . . . 40 Ram . | . . . . . . . . . . . . . . . . . . . Kick 6 | . . . 4 . . . . . . . . . . . . . . 2 Crush 2 | . . . . . . . . . . . . . . . . . 2 . Escape Stasis 16 | . . . . . . . . . . . . . . . . . 16 . Rewire 79 | . . . . . . . 79 . . . . . . . . . . . Trap . | . . . . . . . . . . . . . . . . . . . Miscellaneous 3 | . . . 3 . . . . . . . . . . . . . . . Route ------- -11/Scrapyard -10/Materials -10/Subcaves -8/Materials -8/Storage (discovered 2 exits: [*Fac] / *Rec) -8/Recycling -6/Factory -6/Extension (discovered 2 exits: *Fac / *Cet) -6/Cetus (discovered 3 exits: *Fac x2 / [*Arc]) -5/Factory -4/Factory (discovered 2 exits: *Upp x2) -4/Upper Caves -4/Upper Caves (discovered 2 exits: [*Res] / *Zhi) -4/Zhirov -3/Proximity Caves -3/Research (discovered 2 exits: [*Res] / [*Arm]) -2/Research -2/Testing -1/Access (discovered 2 exits: *Sur / Com) To Epsilon Eridani History --------- Turn | Location | Event 27 | -11/Scrapyard | Discovered new exit (range 15) 175 | -11/Scrapyard | Entered Materials 308 | -10/Materials | Build established: Mutant 356 | -10/Materials | Discovered new exit (range 7) 374 | -10/Materials | Entered Subcaves 375 | -10/Subcaves | Approached by a straggling Scientist 511 | -10/Subcaves | Disturbed a concealed Subdweller 685 | -10/Subcaves | A swath of the cavern ceiling suddenly collapsed 1540 | -10/Subcaves | Discovered new exit (range 14) 1647 | -10/Subcaves | Entered Materials 1647 | -8/Materials | Evolved 4 slots: Propulsion x2, Utility x2 1951 | -8/Materials | Build established: Subdweller-Mutant 2284 | -8/Materials | Identified exit to Storage 2442 | -8/Materials | Lost 4 parts (1p2n1w) 2461 | -8/Materials | Entered Storage 2662 | -8/Storage | Lost 4 parts (3u1w) 2877 | -8/Storage | Build established: Mutant 3055 | -8/Storage | Discovered new exit (range 14) 3085 | -8/Storage | Core integrity fell below 50% 3878 | -8/Storage | Used back door to open Recycling access 3878 | -8/Storage | Discovered new exit (range 5) 3883 | -8/Storage | Entered Recycling 4091 | -8/Recycling | Entered Scraplab 4096 | -8/Recycling | Found Prototype Device 4096 | -8/Recycling | Identified Scrap Engine 4280 | -8/Recycling | Discovered new exit (range 9) 4319 | -8/Recycling | Entered Factory 4319 | -6/Factory | Evolved 4 slots: Power x1, Propulsion x1, Utility x1, Weapon x1 4364 | -6/Factory | Discovered new exit (range 20) 4669 | -6/Factory | Repaired Hvy. Ion Engine 5154 | -6/Factory | Identified exit to Extension 5155 | -6/Factory | Entered Extension 5270 | -6/Extension | Spotted B-75 Beast 5600 | -6/Extension | Rescued a captive Derelict 5600 | -6/Extension | Rescued a captive Derelict 5647 | -6/Extension | Rescued a captive Derelict 5650 | -6/Extension | Rescued a captive Derelict 5735 | -6/Extension | Rescued a captive Derelict 5862 | -6/Extension | Lost 4 allies 5909 | -6/Extension | Rescued a captive Derelict 5911 | -6/Extension | Rescued a captive Derelict 5921 | -6/Extension | Spotted B-75 Beast 5929 | -6/Extension | Destroyed B-75 Beast 5953 | -6/Extension | Destroyed B-75 Beast 5966 | -6/Extension | Lost 5 parts (4n1w) 5978 | -6/Extension | Lost 7 allies 6208 | -6/Extension | Build established: Scavenger-Mutant 6395 | -6/Extension | Disrupted transfer network 6402 | -6/Extension | Discovered new exit (range 16) 6402 | -6/Extension | Discovered new exit (range 16) 6442 | -6/Extension | Identified exit to Factory 6448 | -6/Extension | Identified exit to Cetus 6450 | -6/Extension | Entered Cetus 6896 | -6/Cetus | Build established: Scavenger-Construct 6935 | -6/Cetus | Spotted Cetus Guard 6947 | -6/Cetus | Spotted Cetus Guard 6951 | -6/Cetus | Spotted Cetus Guard 6955 | -6/Cetus | Spotted Cetus Guard 6967 | -6/Cetus | Destroyed Cetus Guard 6974 | -6/Cetus | Destroyed Cetus Guard 6979 | -6/Cetus | Core integrity fell below 50% 6984 | -6/Cetus | Destroyed Cetus Guard 6988 | -6/Cetus | Destroyed Cetus Guard 7011 | -6/Cetus | Lost 3 parts (2n1u) 7095 | -6/Cetus | Discovered exit to Factory (range 15) 7200 | -6/Cetus | Security sweep announced 7206 | -6/Cetus | Discovered new exit (range 22) 7306 | -6/Cetus | Spotted Cetus Guard 7306 | -6/Cetus | Spotted Cetus Guard 7348 | -6/Cetus | Destroyed Cetus Guard 7348 | -6/Cetus | Spotted Cetus Guard 7356 | -6/Cetus | Core integrity fell below 20% 7358 | -6/Cetus | Spotted Cetus Guard 7361 | -6/Cetus | Destroyed Cetus Guard 7367 | -6/Cetus | Destroyed Cetus Guard 7370 | -6/Cetus | Destroyed Cetus Guard 7393 | -6/Cetus | Discovered exit to Factory (range 15) 7401 | -6/Cetus | Met Revision 17 7441 | -6/Cetus | Entered Factory 7441 | -5/Factory | Evolved 2 slots: Utility x2 7502 | -5/Factory | Discovered new exit (range 59) 7714 | -5/Factory | Build established: Scavenger-Tank 7978 | -5/Factory | Entered another Factory area 7978 | -4/Factory | Evolved 2 slots: Propulsion x2 8309 | -4/Factory | Identified exit to Upper Caves 8535 | -4/Factory | Entered Upper Caves 8619 | -4/Upper Caves | Learned location of Testing (-2) 8830 | -4/Upper Caves | Attracted the attention of an 0b10 checkpoint 8920 | -4/Upper Caves | Discovered new exit (range 6) 8928 | -4/Upper Caves | Build established: Construct 8943 | -4/Upper Caves | Entered another Upper Caves area 9061 | -4/Upper Caves | Found Alien Artifact 9166 | -4/Upper Caves | Discovered new exit (range 13) 9289 | -4/Upper Caves | Discovered new exit (range 12) 9294 | -4/Upper Caves | Entered Zhirov 9294 | -4/Zhirov | Discovered new exit (range 3) 9304 | -4/Zhirov | Met Zhirov 9315 | -4/Zhirov | Learned location of Quarantine (-3) 9315 | -4/Zhirov | Learned location of Command (-1) 9330 | -4/Zhirov | Zhirov requested help retrieving the SGEMP Prototype 9339 | -4/Zhirov | Found Alien Artifact 9339 | -4/Zhirov | Identified Integrated Dissipator 9339 | -4/Zhirov | Installed Integrated Dissipator, increased core heat dissipation (+20) 9351 | -4/Zhirov | Found Alien Artifact 9409 | -4/Zhirov | Entered Proximity Caves 9671 | -3/Proximity Caves | Attracted the attention of an 0b10 checkpoint 9690 | -3/Proximity Caves | Attracted the attention of an 0b10 outpost 9713 | -3/Proximity Caves | Discovered new exit (range 6) 9714 | -3/Proximity Caves | Entered Research 9714 | -3/Research | Evolved 2 slots: Utility x2 9904 | -3/Research | Discovered new exit (range 5) 9914 | -3/Research | Revision forces began assault on 0b10 9944 | -3/Research | Met up with Revision 17++ 9989 | -3/Research | Discovered new exit (range 6) 10201 | -3/Research | Entered another Research area 10201 | -2/Research | Evolved 2 slots: Utility x2 10335 | -2/Research | Discovered new exit (range 12) 10350 | -2/Research | Build established: Tank 10365 | -2/Research | Identified exit to Testing 10388 | -2/Research | Entered Testing 10480 | -2/Testing | Found Prototype Device 10480 | -2/Testing | Identified 2N-1CE's Frost Array 10495 | -2/Testing | Discovered new exit (range 16) 10534 | -2/Testing | Spotted PG-Z68IOSAIXU 10541 | -2/Testing | Identified exit to Access 10545 | -2/Testing | Identified Dimensional Node Initializer 10545 | -2/Testing | Initialized slip node 10580 | -2/Testing | Found Prototype Hackware 10822 | -2/Testing | System corruption reached 10% 10959 | -2/Testing | Spotted Striker 10963 | -2/Testing | Spotted Striker 10982 | -2/Testing | Found Prototype Protection 10982 | -2/Testing | Identified Lgt. Regenerative Plating 10985 | -2/Testing | Found Prototype Protection 10985 | -2/Testing | Identified Med. Regenerative Plating 11002 | -2/Testing | Scanned by Researcher 11026 | -2/Testing | Spotted Alpha 7 11044 | -2/Testing | Stole the SGEMP Prototype 11045 | -2/Testing | Identified Transdimensional Reconstructor 11045 | -2/Testing | Warped through subspace to slip node 11068 | -2/Testing | Entered Access 11068 | -1/Access | Evolved 2 slots: Utility x1, Weapon x1 11070 | -1/Access | Loaded intel: 120 machine locations 11070 | -1/Access | Loaded intel: 60 trap records 11070 | -1/Access | Identified exit to Surface 11070 | -1/Access | Discovered exit to Surface (range 102) 11070 | -1/Access | Identified exit to Command 11070 | -1/Access | Discovered exit to Command (range 114) 11070 | -1/Access | Delivered the SGEMP Prototype to Zhirov 11070 | -1/Access | Zhirov transferred Access data 11071 | -1/Access | Lost 5 parts (1p2n1u1w) 11209 | -1/Access | Identified System Mapper 11250 | -1/Access | Zhirov warped through subspace 11391 | -1/Access | Destroyed 10 combat bots 11408 | -1/Access | System corruption reached 10% 11426 | -1/Access | Lost 7 parts (1p2n2u2w) 11707 | -1/Access | Build established: Hacker-Gunner 12034 | -1/Access | Found Imp. Powered Armor 12357 | -1/Access | Lost 5 parts (1p1n1u2w) 12491 | -1/Access | Spotted B-99 Colossus 12503 | -1/Access | Spotted B-99 Colossus 12542 | -1/Access | Core integrity fell below 50% 12590 | -1/Access | Lost 14 parts (1p4n7u2w) 12648 | -1/Access | Spotted B-99 Colossus 12670 | *** | Escaped! Last Messages --------------- 12634_ System corrupted: Energy discharge (-70). 12639_ Slug penetrates Wall. 12642_ Penetrated by Slug. 12642_ Multi-Quantum Reactor destroyed. 12654_ Flying FPD-Biometal Exoskeleton destroyed. 12654_ Flying FPD-Biometal Exoskeleton core remains intact and functional. 12654_ Slug penetrates Wall. 12656_ ALERT: Potential suspicious activity detected, Programmers report to Access Zone 1O. 12657_ PNQCD0NSPWI:YVH9AUEF4YI=JZHG/M=VWHR 12663_ Connecting with Terminal... >>Open(Door) Sealed Barrier opened. 12664_ ALERT: Suspicious activity at Terminal A001. Dispatching Investigation squad. 12666_ The Access Shell folds into the floor. 12668_ System corrupted: Slammed into ceiling. Map ----- +----------------------------------------------------+ | + """ # # + | | ######### G # # #########+ | | ########## """ # # ## | | ########## " # # " ##! | | ########## # # """ ## | | ########## # / """ ## | | ########## + # " ## | | ########## # # #######+## | | ########## # # ####### ## | | ####################### #########+########## ## | | ########## #### ###### ########## ## | | ########## #### ###### ########## ## | | ########## #### ###### ########## | | ########## #### ###### ############# | | ########## #### ###### ############# | | # #### ###### ############# | | # #### ###### ############# | | # ! ####""""""""""###### ############# | | "" "" # ####""""""""""######+############# | | ""R"" # ####""""""""""### ######### | | """" # ####""""""""""### ## ### | | # #### ### ## | | # #### ### " ## | | #####+######+####### ### """ ## | | ^ ####### "" ### """ ## | | ^ ^ ####### "@ ### " ## | | ####### ### ## " | | ^^=== ##### ### ## """ | | #### =^= ##### ### " ## """ | | + === ####### ### """ ## " | | # ###### ## """ ## | | " # #######"" ### " ## | | " # #######"" ### ## | | " # ##### "######"" ### ## " | | # ##### #######T ### ## """ | | " # ##### #######"" ### ## """ | | " # ##### #######""p ### ## " | | " # #####% #######"" #####+####### | | # ##### A | | # ##### k | | # #############################+#+############ | | # ########################### ##### | | #### ########################### ##### | | + ########################### "" ##### | | # # ################## "" ##### | | # # ################## """""" ##### | | # # ################## """""" ##### | | # # ################## "" ##### | | #### # ################## "" ##### | | #### # ################## ##### | +----------------------------------------------------+ Best States ------------- Heat Dissipation 191 Energy Generation 47 Energy Capacity 1180 Matter Stores 300 Matter Capacity 300 Sight Range 22 Robot Scan Range 16 Terrain Scan Range 16 Terrain Scan Density 10 Base Temperature (-) 100 Armor Coverage 1100 Resistance: KI 30 Resistance: TH 25 Propulsion Shielding 90 Weapon Shielding 66 Point Defense Rating 240 Weapon Cycling 25 Phase Shifting 15 Evasion (%) 70 Targeting Accuracy 14 Core Analysis 6 Recoil Reduction 7 Particle Charging 15 Offensive Hacking 20 Defensive Hacking 12 Item Schematics ----------------- Assault Drone Bay | -4/Zhirov | Free Exp. Heat Sink | -4/Zhirov | Free Exp. Optical Array | -4/Zhirov | Free Imp. Arc Thrower | -4/Zhirov | Free Robot Schematics ------------------ None Fabricated ------------ Nothing Repaired ---------- Hvy. Ion Engine | 10% | -6/Factory Studied --------- Hyp. Railgun | -1/Access | Hacked Mic. Antimatter Reactor | -1/Access | Hacked Alien Tech Used ----------------- Integrated Dissipator Dimensional Node Initializer Transdimensional Reconstructor Achievements -------------- Left-hand Path Special Delivery Challenges ------------ None Game ------ Seed TeslaSapperSegregator Manual? 0 Play Time 02:32:17 Cumulative 261.3 hours Start 2026.08.14 @ 00:08:11 End 2026.08.14 @ 21:56:37 Sessions 5 Manual Loads 0 Difficulty Rogue Special Mode None Game No. 340 Rogue 340 Adventurer 0 Explorer 0 Win Type 0 Total 6 Types 5/0/0/1/0/0/0/0/0/0 Lore% 79 Gallery% 65 Achievement% 54 Wizard Run 0 Options --------- Layout 2 ASCII 0 Keyboard 0 Movement Mouse Keybinds 0 Fullscreen 1 Font 24/Smallcaps Map View 50x44 Zoom Use 9% Tactical HUD 1 Map Filters NONE Filters NONE Steam 1 RUN: ee5ef143-5a25-40c6-9e9e-bb27c159ad54